bitfinex/quotes_ETHUSD_20241231
["timestamp","ask_amount","ask_price","bid_price","bid_amount"]
[1735647384224,119.88,3401.0,3400.9,17.96599228]
[1735647384547,123.21,3401.0,3400.9,17.96599228]
[1735647385044,123.21,3401.0,3400.9,16.65802228]
[1735647387047,126.54,3401.0,3400.9,16.65802228]
[1735647388351,126.54,3401.0,3400.9,20.35156894]
[1735647389446,129.87,3401.0,3400.9,20.35156894]
[1735647390526,129.87,3401.0,3400.9,20.11669894]
[1735647391849,133.2,3401.0,3400.9,20.11669894]
[1735647392750,133.2,3401.0,3400.9,21.36414124]
[1735647392941,133.2,3401.0,3400.9,22.99944124]
[1735647393121,133.2,3401.0,3400.9,21.75199894]
[1735647393735,133.2,3401.0,3400.9,18.05845228]
[1735647394137,136.53,3401.0,3400.9,14.60129228]
[1735647394343,136.53,3401.0,3400.9,17.20099228]
[1735647394544,136.53,3401.0,3400.9,16.82142228]
[1735647395314,136.53,3401.0,3400.9,14.60129228]
[1735647395556,134.34670214,3401.0,3400.9,14.60129228]
[1735647395859,134.34670214,3401.0,3400.9,15.28983228]
[1735647396668,137.67670214,3401.0,3400.9,15.28983228]
[1735647397818,137.67670214,3401.0,3400.9,18.99945495]
[1735647398936,141.00670214,3401.0,3400.9,18.99945495]
[1735647400039,141.00670214,3401.0,3400.9,20.65955495]
[1735647401423,144.33670214,3401.0,3400.9,20.65955495]
[1735647401636,144.33670214,3401.0,3400.9,21.25907005]
[1735647404375,147.66670214,3401.0,3400.9,21.25907005]
[1735647405241,147.66670214,3401.0,3400.9,22.50651235]
[1735647405676,147.66670214,3401.0,3400.9,21.25907005]
[1735647406579,147.66670214,3401.0,3400.9,22.50651235]
[1735647406786,150.99670214,3401.0,3400.9,22.50651235]
[1735647407080,150.99670214,3401.0,3400.9,21.25907005]
[1735647408180,150.99670214,3401.0,3400.9,22.50651235]
[1735647409597,154.32670214,3401.0,3400.9,22.50651235]
[1735647409892,152.77008318,3401.0,3400.9,22.50651235]
[1735647410187,152.77008318,3401.0,3400.9,22.65013472]
[1735647412292,156.10008318,3401.0,3400.9,22.65013472]
[1735647414890,159.43008318,3401.0,3400.9,22.65013472]
[1735647415796,159.43008318,3401.0,3400.9,22.50651235]
[1735647415999,159.43008318,3401.0,3400.9,21.25907005]
[1735647417320,162.76008318,3401.0,3400.9,16.94993228]
[1735647417682,162.76008318,3401.0,3400.9,15.28983228]
[1735647417883,165.75638275,3401.0,3400.9,11.71854998]
[1735647418979,165.75638275,3401.0,3400.9,12.96599228]
[1735647419382,162.76008318,3401.0,3400.9,17.96599228]
[1735647419783,166.09008318,3401.0,3400.9,17.96599228]
[1735647419997,166.09008318,3401.0,3400.9,16.12170228]
[1735647420321,166.09008318,3401.0,3400.9,12.96599228]
[1735647420492,166.09008318,3401.0,3400.9,10.88886998]
[1735647420821,170.71378275,3401.0,3400.9,8.93578006]
[1735647421321,167.71748318,3401.0,3400.9,11.87617006]
[1735647422427,171.04748318,3401.0,3400.9,11.80854311]
[1735647423403,171.04748318,3401.0,3400.9,6.67731566]
[1735647424098,171.04748318,3401.0,3400.9,11.67731566]
[1735647424307,169.42008318,3401.0,3400.9,14.67731566]
[1735647424797,172.75008318,3401.0,3400.9,14.67731566]
[1735647425895,172.75008318,3401.0,3400.9,14.20782566]
[1735647426143,172.75008318,3401.0,3400.9,14.17817998]
[1735647427193,176.08008318,3401.0,3400.9,14.17817998]
[1735647427394,176.08008318,3401.0,3400.9,17.88470976]
[1735647427705,168.72928318,3401.0,3400.9,20.71775206]
[1735647428517,168.72928318,3401.0,3400.9,19.47030976]
[1735647428725,168.72928318,3401.0,3400.9,23.40792642]
[1735647429064,165.4550147,3401.0,3400.9,24.65536872]
[1735647429221,165.4550147,3401.0,3400.9,20.61013872]
[1735647429422,164.3745347,3401.0,3400.9,28.44318102]
[1735647429625,161.4342147,3401.0,3400.9,20.79903458]
[1735647429859,159.25112889,3401.0,3400.9,20.79903458]
[1735647430252,157.34726776,3401.0,3400.9,20.79903458]
[1735647430462,153.90924776,3401.0,3400.9,20.79903458]
[1735647430824,153.90924776,3401.0,3400.9,28.44318102]
[1735647431057,151.21437141,3401.0,3400.9,28.44318102]
[1735647431258,150.26467141,3401.0,3400.9,30.21218102]
[1735647431431,146.99311141,3401.0,3400.9,30.21218102]
[1735647431631,138.96309143,3401.0,3400.9,30.21218102]
[1735647431831,142.29309143,3401.0,3400.9,30.21218102]
[1735647432164,141.34159143,3401.0,3400.9,30.21218102]
[1735647432342,136.30161144,3401.0,3400.9,25.46348491]
[1735647432527,131.93605379,3401.0,3400.9,25.46348491]
[1735647432728,131.93605379,3401.0,3400.9,23.69448491]
[1735647432928,131.93605379,3401.0,3400.9,23.14448491]
[1735647433360,130.46589379,3401.0,3400.9,23.14448491]
[1735647433667,119.12853835,3401.0,3400.9,23.69448491]
[1735647434271,120.98837835,3401.0,3400.9,21.14050746]
[1735647435472,120.98837835,3401.0,3400.9,25.4597326]
[1735647436686,124.31837835,3401.0,3400.9,21.14050746]
[1735647437513,114.88207835,3401.0,3400.9,21.14050746]
[1735647438311,113.41191835,3401.0,3400.9,21.14050746]
[1735647439007,112.33143835,3401.0,3400.9,21.14050746]
[1735647439420,109.39111835,3401.0,3400.9,26.24260383]
[1735647439717,103.08933835,3401.0,3400.9,26.24260383]
[1735647440479,92.69923836,3401.0,3400.9,28.01160383]
[1735647440684,90.15323836,3401.0,3400.9,28.01160383]
[1735647440884,89.03553836,3401.0,3400.9,28.01160383]
[1735647441422,87.15909353,3401.0,3400.9,28.01160383]
[1735647441587,85.68893353,3401.0,3400.9,28.01160383]
[1735647441788,84.21877353,3401.0,3400.9,28.01160383]
[1735647442527,84.21877353,3401.0,3400.9,22.90950746]
[1735647442825,70.67503245,3401.0,3400.9,22.90950746]
[1735647443852,69.63927985,3401.0,3400.9,22.90950746]
[1735647444946,68.16911985,3401.0,3400.9,22.90950746]
[1735647445148,63.42469357,3401.0,3400.9,22.90950746]
[1735647445326,58.46421357,3401.0,3400.9,22.90950746]
[1735647445496,50.31711357,3401.0,3400.9,22.90950746]
[1735647446006,49.52081357,3401.0,3400.9,22.90950746]
[1735647446206,52.05451357,3401.0,3400.9,22.90950746]
[1735647446632,49.11419357,3401.0,3400.9,22.90950746]
[1735647447704,47.64403357,3401.0,3400.9,22.90950746]
[1735647447905,46.17387357,3401.0,3400.9,22.90950746]
[1735647448639,45.44075357,3401.0,3400.9,22.90950746]
[1735647449156,45.24075357,3401.0,3400.9,22.90950746]
[1735647449298,42.30043357,3401.0,3400.9,22.90950746]
[1735647450429,41.88623357,3401.0,3400.9,22.90950746]
[1735647450767,38.94591357,3401.0,3400.9,22.90950746]
[1735647451435,42.27591357,3401.0,3400.9,22.90950746]
[1735647452135,41.47961357,3401.0,3400.9,22.90950746]
[1735647452331,41.47961357,3401.0,3400.9,22.5665217]
[1735647452733,38.69915357,3401.0,3400.9,22.5665217]
[1735647453095,34.67603357,3401.0,3400.9,22.5665217]
[1735647453295,7.08846037,3401.0,3400.9,22.5665217]
[1735647453490,3.10896037,3401.0,3400.9,21.98585886]
[1735647453737,1.26296964,3401.0,3400.9,21.98585886]
[1735647453919,0.22103963,3401.0,3400.9,21.98585886]
[1735647454258,19.98,3401.3,3401.2,1.769]
[1735647454466,19.8457,3401.3,3401.2,17.62358346]
[1735647454664,19.8457,3401.3,3401.2,17.67025511]
[1735647455917,19.8457,3401.3,3401.2,26.57001102]
[1735647456133,23.1757,3401.3,3401.2,26.57001102]
[1735647458524,26.5057,3401.3,3401.2,26.57001102]
[1735647458926,26.5057,3401.3,3401.2,27.15310156]
[1735647460538,26.5057,3401.3,3401.2,27.30041826]
[1735647460952,29.8357,3401.3,3401.2,27.30041826]
[1735647461327,26.56198571,3401.3,3401.2,27.30041826]
[1735647463364,26.56198571,3401.3,3401.2,28.47705526]
[1735647463563,29.89198571,3401.3,3401.2,28.47705526]
[1735647465575,25.52704667,3401.3,3401.2,28.47705526]
[1735647465939,28.85704667,3401.3,3401.2,28.47705526]
[1735647467563,27.38701667,3401.3,3401.2,28.47705526]
[1735647467773,24.44695667,3401.3,3401.2,28.47705526]
[1735647468228,27.77695667,3401.3,3401.2,28.47705526]
[1735647468731,23.21340017,3401.3,3401.2,28.47705526]
[1735647469971,16.24548017,3401.3,3401.2,24.17053967]
[1735647470271,8.15249017,3401.3,3401.2,24.17053967]
[1735647470453,2.27237017,3401.3,3401.2,24.17053967]
[1735647470845,5.60237017,3401.3,3401.2,24.17053967]
[1735647471179,3.94544341,3401.3,3401.2,24.17053967]
[1735647471370,1.67911341,3401.3,3401.2,24.17053967]
[1735647472873,1.67911341,3401.3,3401.2,29.26777689]
[1735647473549,5.00911341,3401.3,3401.2,29.26777689]
[1735647474304,5.00911341,3401.3,3401.2,28.92508859]
[1735647475273,0.23445341,3401.3,3401.2,28.92508859]
[1735647475441,3.26100382,3401.7,3401.6,6.8363]
[1735647475644,3.26100382,3401.7,3401.6,13.08268258]
[1735647476009,3.26100382,3401.7,3401.6,13.1287264]
[1735647476136,6.59100382,3401.7,3401.6,13.1287264]
[1735647476636,6.59100382,3401.7,3401.6,16.0685164]
[1735647476865,6.59100382,3401.7,3401.6,25.75429302]
[1735647477072,3.44223765,3401.7,3401.6,25.75429302]
[1735647478439,0.16899829,3401.7,3401.6,25.75429302]
[1735647478645,3.49899829,3401.7,3401.6,27.0006756]
[1735647478850,3.49899829,3401.7,3401.6,24.23699302]
[1735647479285,3.49899829,3401.7,3401.6,18.12365432]
[1735647480185,3.49899829,3401.7,3401.6,22.43493]
[1735647480950,6.82899829,3401.7,3401.6,22.43493]
[1735647481348,6.82899829,3401.7,3401.6,23.018525]
[1735647482289,6.82899829,3401.7,3401.6,24.26490758]
[1735647482464,6.82899829,3401.7,3401.6,25.78220758]
[1735647483346,10.15899829,3401.7,3401.6,25.78220758]
[1735647484389,10.15899829,3401.7,3401.6,26.12453925]
[1735647484604,10.15899829,3401.7,3401.6,29.45977732]
[1735647485163,10.15899829,3401.7,3401.6,27.94247732]
[1735647485817,13.48899829,3401.7,3401.6,27.94247732]
[1735647485967,13.48899829,3401.7,3401.6,25.38849987]
[1735647487411,13.48899829,3401.7,3401.6,20.29596357]
[1735647487713,9.12457247,3401.7,3401.6,20.29596357]
[1735647488567,12.45457247,3401.7,3401.6,20.29596357]
[1735647491117,15.78457247,3401.7,3401.6,21.47245757]
[1735647492828,15.78457247,3401.7,3401.6,24.02643502]
[1735647493001,15.78457247,3401.7,3401.6,23.47643502]
[1735647493199,15.78457247,3401.7,3401.6,20.53094102]
[1735647493421,19.11457247,3401.7,3401.6,21.08094102]
[1735647494524,19.11457247,3401.7,3401.6,18.52696357]
[1735647495930,22.44457247,3401.7,3401.6,18.52696357]
[1735647497389,22.44457247,3401.7,3401.6,24.60773809]
[1735647497793,19.1708599,3401.7,3401.6,24.60773809]
[1735647498434,22.5008599,3401.7,3401.6,24.60773809]
[1735647498796,22.5008599,3401.7,3401.6,20.29596357]
[1735647500805,25.8308599,3401.7,3401.6,20.29596357]
[1735647501740,25.8308599,3401.7,3401.6,25.38849987]
[1735647501895,21.46645198,3401.7,3401.6,25.38849987]
[1735647502096,0.66367526,3401.7,3401.6,29.7252967]
[1735647502327,23.5902488,3402.0,3401.9,9.76023]
[1735647502538,22.1205288,3402.0,3401.9,20.43042366]
[1735647502744,20.46404648,3402.0,3401.9,20.47612838]
[1735647503243,23.79404648,3402.0,3401.9,20.47612838]
[1735647503604,22.32432648,3402.0,3401.9,20.47612838]
[1735647504236,20.85460648,3402.0,3401.9,20.47612838]
[1735647504599,20.85460648,3402.0,3401.9,24.0485663]
[1735647504803,10.65447976,3402.0,3401.9,24.0485663]
[1735647505648,10.65447976,3402.0,3401.9,21.21346947]
[1735647505944,13.98447976,3402.0,3401.9,21.21346947]
[1735647506147,13.98447976,3402.0,3401.9,22.18546704]
[1735647506346,8.52990462,3402.0,3401.9,22.18546704]
[1735647507149,8.52990462,3402.0,3401.9,21.82961404]
[1735647507843,8.52990462,3402.0,3401.9,21.47376104]
[1735647508148,3.32011462,3402.0,3401.9,24.30885787]
[1735647508368,1.6411,3403.1,3402.8,4.70775]
[1735647508564,1.6411,3403.1,3402.8,13.25775]
[1735647508884,1.6411,3403.1,3402.8,12.94760172]
[1735647509551,1.6411,3403.1,3402.8,14.98883604]
[1735647509869,1.6411,3403.1,3402.8,12.94760172]
[1735647510405,1.6411,3403.4,3402.8,12.94760172]
[1735647510605,6.66,3402.9,3402.8,12.94760172]
[1735647511541,6.66,3402.9,3402.8,16.24433657]
[1735647512689,2.25201,3402.9,3402.8,16.24433657]
[1735647512836,3.33001,3402.9,3402.8,18.05540531]
[1735647513037,3.33001,3402.9,3402.8,22.36213594]
[1735647513355,1.86068,3402.9,3402.8,22.36213594]
[1735647513537,3.33,3403.8,3403.7,2.93797]
[1735647513744,3.33,3403.8,3403.7,14.32306683]
[1735647514185,3.33,3403.8,3403.7,14.36792055]
[1735647515610,6.66,3403.8,3403.7,14.36792055]
[1735647515797,6.66,3403.8,3403.7,17.6646554]
[1735647516720,6.66,3403.8,3403.7,11.89158857]
[1735647516879,8.3033,3403.8,3403.7,11.89158857]
[1735647517460,8.3033,3403.8,3403.7,14.9570408]
[1735647517860,11.6333,3403.8,3403.7,14.9570408]
[1735647518758,11.6333,3403.8,3403.7,10.00774008]
[1735647519695,11.6333,3403.8,3403.7,15.78080691]
[1735647520194,11.6333,3403.8,3403.7,20.11678695]
[1735647520400,14.9633,3403.8,3403.7,20.11678695]
[1735647522064,14.9633,3403.8,3403.7,20.70609079]
[1735647522906,18.2933,3403.8,3403.7,20.70609079]
[1735647524697,18.2933,3403.8,3403.7,18.25395924]
[1735647525404,21.6233,3403.8,3403.7,18.25395924]
[1735647525801,21.6233,3403.8,3403.7,11.93089241]
[1735647526009,23.78563,3403.8,3403.7,11.93089241]
[1735647527072,23.78563,3403.8,3403.7,12.48089241]
[1735647527381,21.6233,3403.8,3403.7,10.59704392]
[1735647527782,24.9533,3403.8,3403.7,10.59704392]
[1735647529618,24.9533,3403.8,3403.7,11.82178368]
[1735647530274,24.9533,3403.8,3403.7,14.75975368]
[1735647530474,28.2833,3403.8,3403.7,14.75975368]
[1735647530682,28.2833,3403.8,3403.7,17.59485051]
[1735647531082,28.2833,3403.8,3403.7,20.11990866]
[1735647531485,26.64,3403.8,3403.7,20.11990866]
[1735647532516,26.64,3403.8,3403.7,20.73493056]
[1735647532872,26.69843908,3403.8,3403.7,20.73493056]
[1735647533898,26.69843908,3403.8,3403.7,18.28279901]
[1735647534305,26.69843908,3403.8,3403.7,20.05179901]
[1735647534777,26.69843908,3403.8,3403.7,21.22761001]
[1735647535406,30.02843908,3403.8,3403.7,21.22761001]
[1735647535591,30.02843908,3403.8,3403.7,22.76191001]
[1735647536420,30.02843908,3403.8,3403.7,21.22761001]
[1735647536608,32.51584196,3403.8,3403.7,13.13554318]
[1735647536917,32.51584196,3403.8,3403.7,14.40742553]
[1735647537841,35.84584196,3403.8,3403.7,14.95742553]
[1735647538193,35.84584196,3403.8,3403.7,10.59704392]
[1735647539793,34.91523908,3403.8,3403.7,10.59704392]
[1735647540237,38.24523908,3403.8,3403.7,10.59704392]
[1735647542034,38.24523908,3403.8,3403.7,11.82156011]
[1735647543298,41.57523908,3403.8,3403.7,11.82156011]
[1735647543521,40.01843908,3403.8,3403.7,17.17112556]
[1735647544042,40.01843908,3403.8,3403.7,20.10909556]
[1735647544806,40.01843908,3403.8,3403.7,18.27232127]
[1735647545623,43.34843908,3403.8,3403.7,18.27232127]
[1735647545800,44.90523908,3403.8,3403.7,15.33435127]
[1735647546001,44.90523908,3403.8,3403.7,12.49925444]
[1735647547009,44.90523908,3403.8,3403.7,11.94925444]
[1735647547010,45.31635649,3403.8,3403.7,11.94925444]
[1735647547314,45.35195649,3403.8,3403.7,14.40404316]
[1735647547661,45.35195649,3403.8,3403.7,14.35918944]
[1735647547798,45.35195649,3403.8,3403.7,14.40211815]
[1735647548228,48.27083908,3403.8,3403.7,14.40211815]
[1735647549139,48.27083908,3403.8,3403.7,10.04511891]
[1735647550741,51.60083908,3403.8,3403.7,10.0021902]
[1735647551235,51.60083908,3403.8,3403.7,9.2069302]
[1735647551449,51.60083908,3403.8,3403.7,5.0021902]
[1735647551605,51.60083908,3403.8,3403.7,7.5614702]
[1735647551809,54.59713865,3403.8,3403.7,9.40541281]
[1735647552158,54.59713865,3403.8,3403.7,9.32499281]
[1735647552919,57.92713865,3403.8,3403.7,9.32499281]
[1735647553472,57.92713865,3403.8,3403.7,6.25682897]
[1735647553621,57.92713865,3403.8,3403.7,3.25682897]
[1735647554521,57.92713865,3403.8,3403.7,6.25682897]
[1735647554925,57.92713865,3403.8,3403.7,3.0]
[1735647555450,61.25713865,3403.8,3403.7,3.0]
[1735647557963,64.58713865,3403.8,3403.7,4.4308318]
[1735647559364,61.59083908,3403.8,3403.7,4.4308318]
[1735647560566,64.92083908,3403.8,3403.7,4.4308318]
[1735647561263,64.92083908,3403.8,3403.7,3.0]
[1735647562957,68.25083908,3403.8,3403.7,3.0]
[1735647565763,71.58083908,3403.8,3403.7,3.0]
[1735647566073,74.57713865,3403.8,3403.7,3.0]
[1735647568153,77.90713865,3403.8,3403.7,3.0]
[1735647570494,77.90713865,3403.8,3403.4,1.23002255]
[1735647570495,2.93815,3403.5,3403.4,1.23002255]
[1735647570665,4.56115,3403.5,3403.4,1.23002255]
[1735647571960,2.93848,3403.2,3402.9,1.23002255]
[1735647572183,1.623,3403.1,3402.9,1.23002255]
[1735647572509,1.623,3403.1,3403.0,0.03729824]
[1735647573075,4.953,3403.1,3403.0,0.03729824]
[1735647573969,4.953,3403.1,3402.7,0.58804473]
[1735647574213,0.4953,3403.0,3402.3,0.55]
[1735647574725,0.21678366,3403.0,3402.4,0.03729824]
[1735647575801,3.33,3403.0,3402.6,3.0]
[1735647576000,3.33,3403.0,3402.8,3.0]
[1735647576202,3.33,3403.0,3402.9,2.616]
[1735647576516,3.33,3403.0,3402.9,2.65329824]
[1735647576805,3.33,3403.0,3402.9,3.24288824]
[1735647577029,3.33,3403.0,3402.9,10.02829141]
[1735647577235,3.33,3403.0,3402.9,11.42239507]
[1735647577990,3.33,3403.0,3402.9,8.58729824]
[1735647578191,6.66,3403.0,3402.9,8.03729824]
[1735647578871,6.66,3403.0,3402.9,11.74210117]
[1735647579304,6.66,3403.0,3402.9,6.74210117]
[1735647579603,9.41856,3403.0,3402.9,3.74210117]
[1735647579806,9.41856,3403.0,3402.9,2.51207862]
[1735647580410,12.35714,3403.0,3402.9,2.51207862]
[1735647580584,15.68714,3403.0,3402.9,2.51207862]
[1735647580779,15.68714,3403.0,3402.9,2.47478038]
[1735647581417,1.5996,3402.6,3402.2,1.23002255]
[1735647581621,0.453846,3402.5,3402.2,1.23002255]
[1735647581822,0.453846,3402.5,3402.3,0.03247085]
[1735647582179,4.53854,3402.6,3402.2,4.23002255]
[1735647582427,4.53854,3402.6,3402.4,0.03247085]
[1735647582603,4.53854,3402.6,3402.2,4.23002255]
[1735647583120,4.53854,3402.6,3402.3,0.03247085]
[1735647583318,7.86854,3402.6,3401.9,2.47818665]
[1735647583517,0.786854,3402.5,3402.0,0.03247085]
[1735647585133,0.786854,3402.5,3401.8,3.0]
[1735647585339,0.786854,3402.5,3402.1,0.03247085]
[1735647585498,0.786854,3402.5,3401.8,3.0]
[1735647585698,3.33,3402.5,3401.9,0.03247085]
[1735647586550,3.33,3402.5,3402.0,2.82722]
[1735647586697,3.33,3402.5,3402.0,3.67927]
[1735647586898,3.33,3402.5,3401.9,0.55]
[1735647587140,3.33,3402.5,3402.0,0.03247085]
[1735647588000,6.66,3402.5,3402.0,0.03247085]
[1735647589198,8.112848,3402.5,3402.0,0.03247085]
[1735647590605,11.442848,3402.5,3402.0,0.03247085]
[1735647591544,1.5249,3402.4,3402.0,0.03247085]
[1735647592107,1.5249,3402.4,3401.8,3.0]
[1735647592302,1.5249,3402.4,3401.9,0.03322786]
[1735647592541,1.778383,3402.3,3401.7,1.23002255]
[1735647592743,1.778383,3402.3,3402.0,0.03400666]
[1735647592921,1.778383,3402.3,3401.7,1.23002255]
[1735647593121,3.33,3402.3,3401.8,0.03406436]
[1735647594612,3.33,3402.3,3401.8,3.0]
[1735647594813,3.33,3402.3,3401.9,0.03406436]
[1735647595223,3.33,3402.3,3401.8,3.0]
[1735647595423,3.33,3402.3,3402.0,0.03406436]
[1735647595653,6.66,3402.3,3401.8,3.0]
[1735647596104,6.66,3402.3,3401.9,0.03406436]
[1735647596309,6.66,3402.3,3401.8,3.0]
[1735647596533,6.66,3402.3,3401.9,0.03406436]
[1735647596923,6.66,3402.3,3401.8,3.0]
[1735647597122,6.66,3402.3,3401.9,0.03406436]
[1735647597327,6.66,3402.3,3402.1,3.0]
[1735647597635,6.66,3402.3,3402.2,6.56644436]
[1735647597839,6.66,3402.3,3402.2,3.03406436]
[1735647598040,9.99,3402.3,3402.2,5.09937436]
[1735647598713,9.99,3402.3,3402.2,5.09303436]
[1735647598916,9.99,3402.3,3402.2,5.41281436]
[1735647599118,9.99,3402.3,3402.2,5.71816436]
[1735647599648,9.99,3402.3,3402.2,6.26816436]
[1735647600441,13.32,3402.3,3402.2,6.26816436]
[1735647600854,13.32,3402.3,3402.2,4.59794678]
[1735647601210,13.32,3402.3,3402.2,7.75508678]
[1735647601731,13.07,3402.3,3402.2,7.75508678]
[1735647602661,14.5949,3402.3,3402.2,4.04794678]
[1735647602828,20.5639,3402.3,3402.2,4.04794678]
[1735647603960,17.9249,3402.3,3402.2,4.04794678]
[1735647604938,17.9249,3402.3,3402.2,3.03406436]
[1735647605143,21.2549,3402.3,3402.2,3.03406436]
[1735647605339,21.2549,3402.3,3402.2,0.03406436]
[1735647605535,21.2549,3402.3,3401.8,1.23002255]
[1735647605867,24.25119957,3402.3,3401.9,0.03376866]
[1735647606068,24.25119957,3402.3,3401.9,3.0]
[1735647606234,24.25119957,3402.3,3402.0,0.03386242]
[1735647607741,21.2549,3402.3,3402.0,0.03386242]
[1735647607945,24.5849,3402.3,3402.0,0.03386242]
[1735647608702,24.5849,3402.3,3401.7,1.23002255]
[1735647609243,1.5035,3402.2,3401.8,0.03395619]
[1735647609783,1.5035,3402.1,3401.8,0.03395619]
[1735647609949,5.689788,3402.0,3401.8,0.03395619]
[1735647610150,4.44303,3401.9,3401.8,0.03395619]
[1735647611143,4.44303,3401.9,3401.7,0.69221355]
[1735647611382,4.44303,3401.9,3401.6,4.5215979]
[1735647611696,4.44303,3401.9,3401.7,0.03395619]
[1735647611848,1.0523308,3401.8,3401.2,0.58902898]
[1735647612182,1.5035,3401.9,3401.3,3.25200619]
[1735647612357,1.5035,3401.9,3401.3,1.58215619]
[1735647612807,4.8335,3401.9,3401.3,1.58215619]
[1735647613086,3.33,3401.9,3401.5,3.0]
[1735647613287,3.33,3401.9,3401.7,3.0]
[1735647613507,3.33,3401.9,3401.8,5.0]
[1735647613710,3.33,3401.9,3401.8,5.03454046]
[1735647613992,3.33,3401.9,3401.8,9.38849046]
[1735647614492,3.33,3401.9,3401.8,7.93165046]
[1735647615170,6.66,3401.9,3401.8,7.93165046]
[1735647615694,6.66,3401.9,3401.8,12.50038705]
[1735647615856,6.66,3401.9,3401.8,17.28394966]
[1735647617136,6.66,3401.9,3401.8,15.44000705]
[1735647617896,9.99,3401.9,3401.8,15.44000705]
[1735647618810,9.99,3401.9,3401.8,16.04228533]
[1735647619704,9.99,3401.9,3401.8,13.10266533]
[1735647620216,9.99,3401.9,3401.8,16.04228533]
[1735647620440,13.32,3401.9,3401.8,16.04228533]
[1735647622830,16.65,3401.9,3401.8,16.04228533]
[1735647623030,12.28560035,3401.9,3401.8,16.04228533]
[1735647624477,2.08547363,3401.9,3401.8,18.87738216]
[1735647624635,2.1423304,3402.0,3401.9,8.05043]
[1735647624845,2.1423304,3402.0,3401.9,13.05043]
[1735647625017,3.3300004,3402.0,3401.9,13.08362897]
[1735647625224,4e-07,3402.0,3401.9,17.6877258]
[1735647625451,15.0816504,3402.3,3402.2,8.05017]
[1735647625624,11.2282692,3402.3,3402.2,15.88526683]
[1735647625829,11.2282692,3402.3,3402.2,15.91841533]
[1735647626229,9.7586792,3402.3,3402.2,15.91841533]
[1735647626424,6.8194992,3402.3,3402.2,15.91841533]
[1735647626651,5.6794992,3402.3,3402.2,15.91841533]
[1735647626858,5.6794992,3402.3,3402.2,20.48715192]
[1735647627670,9.0094992,3402.3,3402.2,20.48715192]
[1735647628040,4.6007292,3402.3,3402.2,20.48715192]
[1735647628255,2.86e-06,3402.3,3402.2,20.48715192]
[1735647629578,8.32340286,3402.5,3402.2,20.48715192]
[1735647629800,60.38840788,3403.8,3403.7,3.48797]
[1735647630073,59.77840788,3403.8,3403.7,10.19695913]
[1735647630255,58.06923788,3403.8,3403.7,14.32306683]
[1735647630464,58.06923788,3403.8,3403.7,14.35621533]
[1735647630836,58.06923788,3403.8,3403.7,15.59596683]
[1735647631361,57.40693143,3403.8,3403.7,15.94811786]
[1735647631563,57.40693143,3403.8,3403.7,15.97790157]
[1735647631735,56.48706506,3403.8,3403.7,20.54663816]
[1735647632069,54.3066705,3403.8,3403.7,20.54663816]
[1735647632473,57.6366705,3403.8,3403.7,20.3299235]
[1735647632673,52.18469775,3403.8,3403.7,24.82331742]
[1735647632836,44.83994775,3403.8,3403.7,24.82331742]
[1735647633672,37.49519775,3403.8,3403.7,21.16832351]
[1735647633853,33.13371128,3403.8,3403.7,21.16832351]
[1735647634297,27.99116128,3403.8,3403.7,21.16832351]
[1735647634441,14.85313456,3403.8,3403.7,21.16832351]
[1735647634774,16.95658863,3403.8,3403.7,26.04023079]
[1735647635279,16.49648863,3403.8,3403.7,26.04023079]
[1735647635880,13.55858863,3403.8,3403.7,26.81519923]
[1735647636064,0.9760225,3403.8,3403.7,26.81519923]
[1735647636252,2.5e-06,3403.8,3403.7,26.81519923]
[1735647636968,2.5e-06,3403.8,3403.7,21.76454287]
[1735647637302,2.5e-06,3403.8,3403.7,21.16832351]
[1735647638002,73.75717356,3404.3,3404.2,5.93754]
[1735647638224,73.75717356,3404.3,3404.2,15.59553683]
[1735647638507,73.75717356,3404.3,3404.2,15.7600299]
[1735647639044,73.75717356,3404.3,3404.2,15.9777359]
[1735647639275,73.75717356,3404.3,3404.2,20.54647249]
[1735647639941,72.68098356,3404.3,3404.2,21.72186849]
[1735647640172,71.21225356,3404.3,3404.2,21.72186849]
[1735647640469,69.74352356,3404.3,3404.2,24.15087683]
[1735647640655,64.29281487,3404.3,3404.2,24.15087683]
[1735647641844,61.02239183,3404.3,3404.2,24.15087683]
[1735647642472,64.35239183,3404.3,3404.2,24.15087683]
[1735647642876,64.35239183,3404.3,3404.2,23.54227037]
[1735647644050,64.35239183,3404.3,3404.2,24.12055681]
[1735647644585,59.07217307,3404.3,3404.2,20.2689532]
[1735647644763,62.40217307,3404.3,3404.2,20.2689532]
[1735647645489,62.40217307,3404.3,3404.2,20.13351683]
[1735647645689,62.40217307,3404.3,3404.2,21.34610353]
[1735647646988,62.40217307,3404.3,3404.2,20.13351683]
[1735647647193,65.73217307,3404.3,3404.2,20.13351683]
[1735647648564,60.28143808,3404.3,3404.2,20.13351683]
[1735647648765,59.17136808,3404.3,3404.2,20.13351683]
[1735647649792,62.50136808,3404.3,3404.2,20.13351683]
[1735647650794,62.50136808,3404.3,3404.2,18.95812083]
[1735647650994,62.50136808,3404.3,3404.2,17.43559991]
[1735647652265,65.83136808,3404.3,3404.2,17.43559991]
[1735647652783,65.83136808,3404.3,3404.2,16.42058597]
[1735647654658,69.16136808,3404.3,3404.2,15.14768597]
[1735647656172,63.71028728,3404.3,3404.2,15.14768597]
[1735647656961,67.04028728,3404.3,3404.2,15.14768597]
[1735647657557,62.67932887,3404.3,3404.2,15.14768597]
[1735647658887,59.40856325,3404.3,3404.2,15.14768597]
[1735647659595,62.73856325,3404.3,3404.2,15.14768597]
[1735647659959,61.08310601,3404.3,3404.2,15.14768597]
[1735647660160,61.08310601,3404.3,3404.2,16.15246192]
[1735647661958,61.08310601,3404.3,3404.2,17.66089747]
[1735647662250,64.41310601,3404.3,3404.2,17.66089747]
[1735647664356,64.41310601,3404.3,3404.2,21.49602782]
[1735647664557,67.74310601,3404.3,3404.2,21.49602782]
[1735647666044,41.71941951,3404.3,3404.2,23.78362277]
[1735647666268,38.15596951,3404.3,3404.2,24.16561049]
[1735647666425,35.21850951,3404.3,3404.2,21.33051366]
[1735647666761,32.28104951,3404.3,3404.2,21.33051366]
[1735647666924,35.61104951,3404.3,3404.2,21.33051366]
[1735647667258,34.14231951,3404.3,3404.2,21.33051366]
[1735647667461,32.67358951,3404.3,3404.2,16.67562594]
[1735647667637,32.67358951,3404.3,3404.2,16.12562594]
[1735647667964,32.67358951,3404.3,3404.2,16.29052911]
[1735647668135,27.22309704,3404.3,3404.2,13.29052911]
[1735647668466,28.87469704,3404.3,3404.2,10.35298911]
[1735647669166,28.87469704,3404.3,3404.2,15.79674012]
[1735647669363,32.20469704,3404.3,3404.2,16.34674012]
[1735647670263,32.20469704,3404.3,3404.2,13.72342139]